[Event "5th Vera Menchik Memorial 2022"]
[Site "Prag"]
[Date "2022.06.05"]
[Round "1.8"]
[White "Sedlak, Ludek"]
[Black "Bures, Jaroslav"]
[Result "0-1"]
[ECO "B19"]
[WhiteElo "1897"]
[BlackElo "2422"]
[Annotator "TA"]
[PlyCount "76"]
[EventDate "2022.06.05"]
[EventType "tourn"]
[EventCountry "CZE"]
[SourceTitle "playchess.com"]
[Source "ChessBase"]
[SourceQuality "1"]
[TimeControl "720+3"]

{[%evp 20,76,18,0,0,-1,-1,-25,-7,-11,-16,-43,-11,-19,-12,-20,-10,-17,-11,-14,-14,-21,-19,-27,-30,-23,14,-62,-31,-95,-59,-102,-88,-95,-75,-208,-220,-226,-180,-168,-135,-116,-130,-124,-121,-291,-272,-348,-357,-424,-411,-397,-414,-425,-423,-426,-414,-1625,-1574]} 1. e4 {[%emt 0:00:02]} c6 {[%emt 0:00:01]} 2. d4 {[%emt 0:00:04]} d5 {[%emt 0:00:01]} 3. Nc3 {[%emt 0:00:02][%cal Bb1c3,Bc3e4,Be4g3][%mdl 32]} dxe4 {[%emt 0:00:02]} 4. Nxe4 {[%emt 0:00:02]} Bf5 {[%emt 0:00:01]} 5. Ng3 {[%emt 0:00:02]} Bg6 {[%emt 0:00:02]} 6. Nf3 {[%emt 0:00:12]} e6 {[%emt 0:00:08]} 7. h4 {[%emt 0:00:07]} h6 {[%emt 0:00:02]} 8. h5 {[%emt 0:00:04]} Bh7 {[%emt 0:00:02]} 9. Bd3 {[%emt 0:00:02]} Bxd3 {[%emt 0:00:03]} 10. Qxd3 {[%emt 0:00:02]} Nf6 {[%emt 0:00:03]} 11. Bf4 {[%emt 0:00:47]} Qa5+ {[%emt 0:00:07] B19: Classical Caro-Kann: 4...Bf5 main line.} 12. Bd2 {[%emt 0:00:20]} Bb4 {[%emt 0:00:03]} 13. c3 {[%emt 0:00:12]} Be7 {[%emt 0:00:02] Black has an edge.} 14. Ne5 {[%emt 0:00:48]} O-O {[%emt 0:00:46] [#]} 15. Nc4 $146 {[%emt 0:01:17]} ({Predecessor:} 15. Ne4 Nbd7 16. Nxf6+ Nxf6 17. Rh3 Qd5 18. O-O-O Qe4 19. Qxe4 Nxe4 20. Re1 Nxd2 21. Kxd2 {0-1 (27) Bannon,E (2154)-Alvarez Pedraza,A (2489) Montreal 2017}) 15... Qa6 {[%emt 0:00:25]} 16. Ne5 {[%emt 0:00:19]} Qxd3 {[%emt 0:00:11]} 17. Nxd3 {[%emt 0:00:02]} Nbd7 {[%emt 0:00:06]} 18. O-O-O {[%emt 0:00:40]} c5 {[%emt 0:00:09]} 19. dxc5 {[%emt 0:00:29][%cal Oc5c6]} Nxc5 {[%emt 0:00:03]} 20. Be3 {[%emt 0:00:10]} Rac8 {[%emt 0:00:08]} 21. Ne5 {[%emt 0:01:32]} a6 {[%emt 0:00:27]} 22. f3 {[%emt 0:00:15]} Nd5 {[%emt 0:00:18][%cal Bf6d5,Bd5f4,Bf4g2][%mdl 32] [#]} 23. Bf2 {[%emt 0:01:32]} (23. Nf5 $1 $11) 23... Rfd8 {[%emt 0:01:20]} 24. Kb1 {[%emt 0:00:11]} (24. Ne2 $1 $15) 24... Nf4 {[%emt 0:00:24]} 25. Rhg1 {[%emt 0:00:57]} Rxd1+ {[%emt 0:01:08]} 26. Rxd1 {[%emt 0:00:01]} Nxg2 {[%emt 0:00:02]} 27. Bxc5 {[%emt 0:00:10]} (27. Ne2 $17 {might work better.}) 27... Rxc5 $19 {[%emt 0:00:07]} 28. Rd7 {[%emt 0:00:34]} Bh4 {[%emt 0:00:56]} 29. Nd3 {[%emt 0:01:37]} Rg5 {[%emt 0:00:01]} 30. Ne4 {[%emt 0:00:22]} Rxh5 {[%emt 0:00:06] White must now prevent ...b6.} 31. Rxb7 {[%emt 0:00:03]} Rf5 {[%emt 0:00:09]} 32. Rb8+ $2 {[%emt 0:00:06]} (32. a4 $17) 32... Kh7 {[%emt 0:00:02]} 33. Ra8 {[%emt 0:00:04]} Rxf3 {[%emt 0:00:02]} 34. Ndc5 {[%emt 0:00:04]} Ne3 {[%emt 0:00:16][%cal Rf3f1] [#]} 35. a4 {[%emt 0:00:02]} g5 {[%emt 0:00:21][%cal Bg7g5,Bg5g4,Bg4g3,Bg3g2][%mdl 32]} 36. Rxa6 {[%emt 0:00:03]} g4 {[%emt 0:00:02]} 37. Ra7 {[%emt 0:00:02]} g3 {[%emt 0:00:10]} 38. Nxe6 {[%emt 0:00:06]} (38. Nxg3 $142 Bxg3 39. a5) 38... g2 {[%emt 0:00:11] Weighted Error Value: White=0.58/Black=0.09 (flawless)} 0-1

[Event "5th Vera Menchik Memorial 2022"]
[Site "Prag"]
[Date "2022.06.05"]
[Round "1.9"]
[White "Varga, David"]
[Black "Steiner, Juraj"]
[Result "1-0"]
[ECO "C01"]
[WhiteElo "2323"]
[BlackElo "2009"]
[Annotator "TA"]
[PlyCount "75"]
[EventDate "2022.06.05"]
[EventType "tourn"]
[EventCountry "CZE"]
[SourceTitle "playchess.com"]
[Source "ChessBase"]
[SourceQuality "1"]
[TimeControl "720+3"]

{[%evp 12,75,15,0,39,36,38,33,41,29,17,26,18,0,-16,-42,-16,-56,-48,-38,-11,-28,-27,-87,-87,-69,-56,-43,-47,-47,-26,-62,-62,-39,-48,-89,-92,-116,-104,-103,-115,-90,-66,-68,-69,-73,0,-12,0,0,58,0,350,350,337,327,697,699,29989,29990,29990,29991,29997,29990,29990,29989]} 1. e4 {[%emt 0:00:03]} e6 {[%emt 0:00:00][%cal Be7e6,Be6d5][%mdl 32]} 2. d4 {[%emt 0:00:01]} d5 {[%emt 0:00:01]} 3. exd5 {[%emt 0:00:27]} exd5 {[%emt 0:00:02]} 4. Nf3 {[%emt 0:00:02]} Bd6 {[%emt 0:00:08]} 5. c4 {[%emt 0:00:01]} c6 {[%emt 0:00:13]} 6. Nc3 {[%emt 0:00:11]} Nf6 {[%emt 0:00:24]} 7. Bg5 {[%emt 0:03:44]} Bg4 {[%emt 0:00:22] C01: French: Exchange Variation.} 8. cxd5 {[%emt 0:00:13] [#]} cxd5 $146 {[%emt 0:00:08]} ({Predecessor:} 8... O-O 9. Be2 Re8 10. O-O cxd5 11. Nxd5 Bxh2+ 12. Kxh2 Qxd5 13. Ne5 Nc6 14. Bxg4 Nxe5 15. dxe5 Qxe5+ 16. f4 Nxg4+ 17. Qxg4 Qxb2 18. Rab1 Qxa2 19. Bf6 g6 20. f5 Re2 21. fxg6 hxg6 22. Qh3 {1-0 (22) Chandler,M (1029)-Lombardi,D (863) LSS email 2013}) 9. Bb5+ {[%emt 0:00:05]} Nc6 {[%emt 0:00:36] White is slightly better.} 10. Nxd5 {[%emt 0:00:50]} (10. Bxf6 $5 gxf6 11. O-O $14) 10... Qa5+ {[%emt 0:00:04]} 11. Nc3 {[%emt 0:00:02] h3 is the strong threat.} Ne4 {[%emt 0:00:53]} 12. Bd2 {[%emt 0:03:04]} Nxd2 {[%emt 0:00:48]} 13. Qxd2 {[%emt 0:00:05]} Bxf3 {[%emt 0:00:06]} 14. gxf3 {[%emt 0:00:38] [#] Threatens to win with d5.} O-O {[%emt 0:00:10]} 15. O-O-O {[%emt 0:00:58]} Rac8 {[%emt 0:00:39] Strongly threatening ...Ne7.} 16. Kb1 {[%emt 0:00:09][%cal Oc3e4]} Bb4 {[%emt 0:00:56] And now ...Bxc3 would win.} 17. Bxc6 {[%emt 0:01:29]} (17. Rhg1 $11 Ne7 18. Qg5) 17... Rxc6 $17 {[%emt 0:00:04]} 18. Rc1 {[%emt 0:00:01]} Rfc8 {[%emt 0:01:35][%cal Rb4c3]} 19. Rhe1 {[%emt 0:00:02]} Qf5+ {[%emt 0:00:38]} 20. Ka1 {[%emt 0:00:08]} Qxf3 {[%emt 0:00:07]} 21. Re3 {[%emt 0:00:19]} Bxc3 {[%emt 0:00:27]} 22. bxc3 {[%emt 0:00:16]} Qf6 {[%emt 0:00:13]} 23. Qe2 {[%emt 0:00:04] [#] Re8+ would kill now.} g6 {[%emt 0:00:08]} 24. Re8+ {[%emt 0:00:08]} Rxe8 {[%emt 0:00:29]} 25. Qxe8+ {[%emt 0:00:01][%mdl 4096] Endgame KQR-KQR} Kg7 {[%emt 0:00:02] Hoping for ...Re6.} 26. Qe3 {[%emt 0:00:02]} Re6 {[%emt 0:00:12]} 27. Qd2 {[%emt 0:00:06]} Qf3 {[%emt 0:00:04] aiming for ...Re2.} 28. d5 {[%emt 0:00:09]} Rd6 {[%emt 0:00:21]} ({Black should try} 28... Re5 $17 29. Rd1 Kf8) 29. Qd4+ {[%emt 0:00:01]} f6 {[%emt 0:00:03]} 30. c4 {[%emt 0:00:03]} a6 {[%emt 0:00:31]} (30... b6 $11) 31. Re1 {[%emt 0:00:03]} (31. Rc3 $14 Qf5 32. Rd3) 31... g5 $2 {[%emt 0:00:23][%mdl 8192]} (31... Rd7 $11) 32. Re7+ $18 {[%emt 0:00:01]} Kg6 {[%emt 0:00:01]} 33. Rxb7 {[%emt 0:00:09]} Qh1+ $2 {[%emt 0:00:11]} (33... Qe2 34. Rb3 Qe5 35. Qxe5 fxe5) 34. Kb2 {[%emt 0:00:02]} Qxh2 {[%emt 0:00:03]} 35. Qe4+ {[%emt 0:00:04] White mates.} f5 {[%emt 0:00:06]} 36. Qe8+ {[%emt 0:00:01]} Kf6 {[%emt 0:00:07]} 37. Rf7+ {[%emt 0:00:03]} Kg6 {[%emt 0:00:07]} 38. Qg8+ {[%emt 0:00:02] Weighted Error Value: White=0.11 (very precise) /Black=0.67} 1-0

[Event "5th Vera Menchik Memorial 2022"]
[Site "Prag"]
[Date "2022.06.05"]
[Round "1.10"]
[White "Rehak, Jiri"]
[Black "Jacko, Vladimir"]
[Result "0-1"]
[WhiteElo "1749"]
[BlackElo "2379"]
[Annotator "TA"]
[PlyCount "18"]
[EventDate "2022.06.05"]
[EventType "tourn"]
[EventCountry "CZE"]
[SourceTitle "playchess.com"]
[Source "ChessBase"]
[SourceQuality "1"]
[TimeControl "720+3"]

{[%evp 15,18,-36,-28,-321,-310]} 1. e4 {[%emt 0:00:03]} c5 {[%emt 0:00:05]} 2. Be2 {[%emt 0:00:01]} g6 {[%emt 0:00:03]} 3. Nc3 {[%emt 0:00:11]} Bg7 {[%emt 0:00:02]} 4. f4 {[%emt 0:00:03]} Nc6 {[%emt 0:00:08]} 5. Nf3 {[%emt 0:00:01]} e6 {[%emt 0:00:14]} 6. d3 {[%emt 0:00:02]} Nge7 {[%emt 0:00:02]} 7. O-O {[%emt 0:00:04]} O-O {[%emt 0:00:03]} 8. Be3 {[%emt 0:00:14]} Nd4 {[%emt 0:00:29] [#]} 9. Nxd4 $146 {[%emt 0:00:08][%mdl 8192] [#] B23: Closed Sicilian: Lines without g3.} (9. e5 $11 {and White stays safe.}) ({Predecessor:} 9. e5 Nef5 10. Bf2 d5 11. g4 Nxf3+ 12. Bxf3 Nd4 13. Bxd4 cxd4 14. Ne2 Qb6 15. Rb1 f6 16. exf6 Bxf6 {½-½ (34) Caxita,E (1865)-Mucha,A (1998) Chess.com INT 2021}) 9... cxd4 {[%emt 0:00:02]} 0-1

[Event "5th Vera Menchik Memorial 2022"]
[Site "Prag"]
[Date "2022.06.05"]
[Round "1.11"]
[White "Burdalev, Kirill"]
[Black "Krejcik, Miroslav"]
[Result "1-0"]
[ECO "A48"]
[WhiteElo "2381"]
[BlackElo "1807"]
[Annotator "TA"]
[PlyCount "81"]
[EventDate "2022.06.05"]
[EventType "tourn"]
[EventCountry "CZE"]
[SourceTitle "playchess.com"]
[Source "ChessBase"]
[SourceQuality "1"]
[TimeControl "720+3"]

{[%evp 13,81,2,13,0,0,-12,4,10,22,16,56,66,47,59,83,57,137,124,132,114,114,109,114,88,91,91,112,110,156,164,185,186,185,183,191,187,181,151,176,172,209,131,262,254,754,695,726,681,716,691,1378,1353,2273,2240,5169,4653,2967,2595,29977,29977,29977,29978,29981,29982,29982,29982,29981,29982,29985,29986]} 1. Nf3 {[%emt 0:12:06]} d5 {[%emt 0:00:06]} 2. d4 {[%emt 0:00:00]} c6 {[%emt 0:00:02]} 3. c4 {[%emt 0:00:00]} Nf6 {[%emt 0:00:03]} 4. e3 {[%emt 0:00:00]} g6 {[%emt 0:00:03]} 5. Nbd2 {[%emt 0:00:00]} Bg7 {[%emt 0:00:04]} 6. b4 {[%emt 0:00:00]} O-O {[%emt 0:00:35]} 7. Bb2 {[%emt 0:00:00]} Bg4 {[%emt 0:00:24]} 8. h3 {[%emt 0:00:00] A48: 1 d4 Nf6 2 Nf3 g6: Torre, London and Colle Systems.} Bxf3 {[%emt 0:00:31]} 9. Nxf3 {[%emt 0:00:00]} Nbd7 {[%emt 0:10:42]} 10. Bd3 {[%emt 0:00:00] [#] The position is equal.} Re8 $146 {[%emt 0:00:00]} ({Predecessor:} 10... dxc4 11. Bxc4 Ne4 12. Qc2 Nd6 13. Bb3 Nf6 14. Ne5 Qb6 15. a3 a5 16. bxa5 Qxa5+ {1-0 (66) Arkell,K (2480)-Berry,N (2150) Edinburgh 1997}) 11. O-O {[%emt 0:00:00]} Nb6 {[%emt 0:00:00]} 12. c5 {[%emt 0:00:00]} Nbd7 {[%emt 0:00:00]} 13. Qc2 {[%emt 0:00:00]} Qc7 {[%emt 0:00:00]} 14. a4 {[%emt 0:00:00]} e5 {[%emt 0:00:00]} (14... b6 $1 $14) 15. dxe5 {[%emt 0:00:00] White is more active.} Ne4 {[%emt 0:00:00]} 16. Bxe4 {[%emt 0:00:00]} dxe4 {[%emt 0:00:00]} 17. Qxe4 {[%emt 0:00:00]} (17. Nd2 {is more complex.} Bxe5 18. Bxe5 Qxe5 19. Nc4) 17... Nxe5 {[%emt 0:00:00]} 18. Bxe5 {[%emt 0:00:00]} Bxe5 {[%emt 0:00:00]} 19. Nxe5 {[%emt 0:00:00]} Qxe5 {[%emt 0:00:00]} 20. Qc4 {[%emt 0:00:00]} Re7 {[%emt 0:00:00]} (20... Rad8 $142) 21. Rad1 $16 {[%emt 0:00:00][%cal Ba1d1,Bd1d6,Bd6d4][%mdl 32]} Rae8 {[%emt 0:00:00]} 22. Rd6 {[%emt 0:00:00]} Qe4 {[%emt 0:00:00]} 23. Rd4 {[%emt 0:00:00]} Qe6 {[%emt 0:00:00]} 24. Qxe6 {[%emt 0:00:00]} Rxe6 $18 {[%emt 0:00:00][%mdl 4096] Endgame KRR-KRR} 25. Rfd1 {[%emt 0:00:00]} Kf8 {[%emt 0:00:00]} 26. Rd7 {[%emt 0:00:00]} R6e7 {[%emt 0:00:00]} 27. Kf1 {[%emt 0:00:00]} Rxd7 {[%emt 0:00:00]} (27... a5 $16 28. bxa5 Ra8 29. Rxe7 Kxe7) 28. Rxd7 {[%emt 0:00:00]} Re7 $2 {[%emt 0:00:00] [#]} (28... Rb8 29. a5 Kg7) 29. Rxe7 {[%emt 0:00:00]} Kxe7 {[%emt 0:01:00] KP-KP} 30. Ke2 {[%emt 0:00:00]} Ke6 {[%emt 0:00:00]} 31. e4 {[%emt 0:00:00]} f5 {[%emt 0:00:00]} 32. Ke3 {[%emt 0:00:00]} g5 {[%emt 0:00:00]} 33. f4 {[%emt 0:00:00]} h6 {[%emt 0:00:00]} 34. exf5+ {[%emt 0:00:00]} Kxf5 {[%emt 0:00:00]} 35. g4+ {[%emt 0:00:00]} Ke6 {[%emt 0:00:18]} 36. Ke4 {[%emt 0:00:00] White mates.} gxf4 {[%emt 0:00:00]} 37. Kxf4 {[%emt 0:00:00]} b6 {[%emt 0:00:00]} 38. cxb6 {[%emt 0:00:00]} axb6 {[%emt 0:00:00]} 39. Ke4 {[%emt 0:00:00]} Kd6 {[%emt 0:00:00]} 40. h4 {[%emt 0:00:00]} Ke6 {[%emt 0:00:00]} 41. a5 {[%emt 0:00:00] Black got outplayed after the opening.  Weighted Error Value: White=0.07 (flawless) /Black=0.47} 1-0

[Event "5th Vera Menchik Memorial 2022"]
[Site "Prag"]
[Date "2022.06.05"]
[Round "1.12"]
[White "Tejkal, Jiri"]
[Black "Hrabusa, Matej"]
[Result "1/2-1/2"]
[ECO "D02"]
[WhiteElo "1869"]
[BlackElo "2361"]
[Annotator "TA"]
[PlyCount "97"]
[EventDate "2022.06.05"]
[EventType "tourn"]
[EventCountry "CZE"]
[SourceTitle "playchess.com"]
[Source "ChessBase"]
[SourceQuality "1"]
[TimeControl "720+3"]

{[%evp 17,97,-29,-13,-19,-18,-30,-22,-31,-34,-27,-21,-48,-57,-50,-58,-49,-43,-104,-104,-111,-107,-112,-118,-106,-113,-114,-49,-54,-32,-62,-52,-49,-48,-58,-54,-57,25,16,16,15,22,28,48,20,17,0,0,-45,-44,-47,-59,-65,0,0,0,0,0,0,0,0,0,0,0,0,0,0,0,0,0,0,0,0,0,0,0,0,0,0,0,0,0,0]} 1. d4 {[%emt 0:00:04]} d5 {[%emt 0:00:01]} 2. Nf3 {[%emt 0:00:03]} Nf6 {[%emt 0:00:02]} 3. Bf4 {[%emt 0:00:02]} c5 {[%emt 0:00:01]} 4. e3 {[%emt 0:00:02]} Nc6 {[%emt 0:00:02]} 5. c3 {[%emt 0:00:01]} Qb6 {[%emt 0:00:01]} 6. Qb3 {[%emt 0:00:03]} c4 {[%emt 0:00:02]} 7. Qc2 {[%emt 0:00:05]} Bf5 {[%emt 0:00:02]} 8. Qc1 {[%emt 0:00:01]} e6 {[%emt 0:00:01]} 9. Nbd2 {[%emt 0:00:18]} Be7 {[%emt 0:00:02]} 10. Be2 {[%emt 0:00:03] D02: 1 d4 d5 2 Nf3 sidelines, including 2...Nf6 3 g3 and 2...Nf6 3 Bf4.} O-O {[%emt 0:00:03]} 11. O-O {[%emt 0:00:03]} Rfc8 {[%emt 0:00:06]} 12. b3 {[%emt 0:00:11]} cxb3 {[%emt 0:00:27]} 13. axb3 {[%emt 0:00:12] [#]} Nb4 $1 {[%emt 0:00:06]} 14. Qb2 {[%emt 0:00:47]} (14. Ne1 Ne4) 14... Nd3 {[%emt 0:00:05]} 15. Bxd3 {[%emt 0:00:14]} Bxd3 {[%emt 0:00:05]} 16. Rfc1 {[%emt 0:00:12] [#]} Nd7 $146 {[%emt 0:00:32]} ({Predecessor:} 16... Nh5 17. Bg5 f6 18. Bh4 g5 19. Bg3 Nxg3 20. hxg3 Rc6 21. Ne1 Bg6 22. b4 Rac8 {0-1 (43) Georgiev,K (2636)-Artemiev,V (2524) Khanty-Mansiysk 2013}) 17. Ne5 {[%emt 0:00:23]} (17. Ne1 $15 Bf5 18. c4) 17... Nxe5 $17 {[%emt 0:00:02]} 18. Bxe5 {[%emt 0:00:02]} a5 {[%emt 0:00:06]} 19. Ra2 {[%emt 0:01:16]} Qd8 {[%emt 0:00:12]} 20. c4 {[%emt 0:00:22]} Bb4 {[%emt 0:00:35]} 21. c5 {[%emt 0:00:23]} Bb5 {[%emt 0:00:07]} (21... Rc6 $17 22. Nf3 Rac8) 22. Nb1 {[%emt 0:00:17]} b6 {[%emt 0:00:04]} 23. Nc3 {[%emt 0:00:12]} Be8 {[%emt 0:00:08] This bishop pair is nice.} 24. Na4 {[%emt 0:00:11]} Bxa4 {[%emt 0:00:08]} 25. Rxa4 {[%emt 0:00:19]} f6 {[%emt 0:00:31]} 26. Bd6 {[%emt 0:00:10]} bxc5 {[%emt 0:00:06]} (26... Rc6 $15) 27. Bxc5 $11 {[%emt 0:00:08]} ({Reject} 27. dxc5 Ra6 $15) 27... Bxc5 {[%emt 0:00:04]} 28. Rxc5 {[%emt 0:00:09]} Rxc5 {[%emt 0:00:08]} 29. dxc5 $15 {[%emt 0:00:01][%mdl 4096] Endgame KQR-KQR} Qd7 {[%emt 0:01:30]} 30. Qc3 {[%emt 0:00:23]} Qb5 {[%emt 0:00:02]} 31. c6 {[%emt 0:00:22]} Rc8 {[%emt 0:00:05]} 32. c7 {[%emt 0:00:06]} Qb6 {[%emt 0:00:06]} 33. Qxa5 {[%emt 0:01:03] [#]} Rxc7 $1 {[%emt 0:00:10] ( -> ...Rc1+)} 34. h3 {[%emt 0:00:27]} (34. g4 Qxb3) 34... Qd6 {[%emt 0:00:02]} ({Much weaker is} 34... Rc1+ 35. Kh2 Qc7+ 36. g3 $11 (36. Qxc7 Rxc7 37. Kg3 Kf7 $11)) (34... Qxb3 $15 35. Rb4 Qd1+ 36. Kh2 Qc2) 35. Qa8+ {[%emt 0:00:24] The position is equal.} Kf7 {[%emt 0:00:04][%cal Rc7c1]} 36. Ra7 {[%emt 0:00:06]} Rxa7 {[%emt 0:00:03]} 37. Qxa7+ $11 {[%emt 0:00:01] KQ-KQ} Kg6 {[%emt 0:00:01]} 38. Qd4 {[%emt 0:00:08]} e5 {[%emt 0:00:03]} 39. Qd3+ {[%emt 0:00:11]} Kh6 {[%emt 0:00:03]} 40. Qd2 {[%emt 0:00:19] Strongly threatening e4+.} g5 {[%emt 0:00:13]} 41. b4 {[%emt 0:00:06]} d4 {[%emt 0:00:03]} 42. b5 {[%emt 0:00:14]} Qb6 {[%emt 0:00:02]} 43. exd4 {[%emt 0:00:19]} exd4 {[%emt 0:00:01]} 44. Qb4 {[%emt 0:00:02]} d3 {[%emt 0:00:08]} 45. Qf8+ {[%emt 0:00:10]} Kg6 {[%emt 0:00:13]} 46. Qg8+ {[%emt 0:00:15]} Kh6 {[%emt 0:00:02]} 47. Qf8+ {[%emt 0:00:02]} Kg6 {[%emt 0:00:27]} 48. Qg8+ {[%emt 0:00:02]} Kh6 {[%emt 0:00:03]} 49. Qf8+ {[%emt 0:00:02] Weighted Error Value: White=0.07 (flawless) /Black=0.11 (very precise)} 1/2-1/2

[Event "5th Vera Menchik Memorial 2022"]
[Site "Prag"]
[Date "2022.06.05"]
[Round "1.14"]
[White "Mach, Ondrej"]
[Black "Ustinov, Oleg"]
[Result "1-0"]
[ECO "E20"]
[WhiteElo "1955"]
[BlackElo "2249"]
[Annotator "TA"]
[PlyCount "67"]
[EventDate "2022.06.05"]
[EventType "tourn"]
[EventCountry "CZE"]
[SourceTitle "playchess.com"]
[Source "ChessBase"]
[SourceQuality "1"]
[TimeControl "720+3"]

{[%evp 9,67,28,29,25,26,27,30,34,50,50,64,50,48,46,39,43,50,31,121,34,178,132,131,5,6,-37,-6,-31,-17,-82,-76,-411,-423,-503,-495,-539,-520,-536,-466,-469,-464,-450,-324,-567,-333,-333,-329,-322,-311,-360,-91,-300,-59,-364,-361,-5105,0,0,5,8]} 1. d4 {[%emt 0:00:03]} Nf6 {[%emt 0:00:05]} 2. c4 {[%emt 0:00:01]} e6 {[%emt 0:00:11]} 3. Nc3 {[%emt 0:00:02]} Bb4 {[%emt 0:00:05]} 4. f3 {[%emt 0:00:02]} Bxc3+ {[%emt 0:00:54]} 5. bxc3 {[%emt 0:00:03]} d6 {[%emt 0:00:04]} 6. e4 {[%emt 0:00:37] E20: Nimzo-Indian: 4 g3 and 4 f3.} c5 {[%emt 0:01:05]} 7. Bd3 {[%emt 0:01:01]} Nc6 {[%emt 0:01:12] Inhibits e5.} 8. Ne2 {[%emt 0:00:02] White has an edge.} e5 {[%emt 0:00:25]} 9. Be3 {[%emt 0:00:18]} b6 {[%emt 0:00:08]} 10. O-O {[%emt 0:00:05]} Na5 {[%emt 0:01:16] [#]} 11. Nc1 $146 {[%emt 0:01:36]} ({Predecessor:} 11. Kh1 Ba6 12. Ng3 Qd7 13. Qe2 O-O-O 14. Rfb1 Qa4 15. Nf1 Bxc4 16. Nd2 Bxd3 17. Qxd3 {1-0 (60) Cai,Y (1951)-Hu,Q (1587) Changsha 2019}) 11... Ba6 {[%emt 0:01:35]} 12. Qe2 {[%emt 0:00:02]} cxd4 {[%emt 0:00:38]} 13. cxd4 {[%emt 0:00:06]} Rc8 {[%emt 0:00:05]} (13... exd4 $14 14. Bf2 (14. Bxd4 Nc6 $14) 14... Nc6) 14. Nb3 {[%emt 0:00:47]} (14. dxe5 $16 dxe5 15. c5 Bxd3 16. Nxd3 (16. Qxd3 Qxd3 17. Nxd3 Nc4 $14)) 14... Nxc4 {[%emt 0:02:27]} (14... exd4 $1 $14 15. Nxd4 (15. Bxd4 Nc6 $11) 15... O-O) 15. Bg5 {[%emt 0:00:02]} (15. Rfc1 $18) 15... O-O {[%emt 0:00:12]} 16. dxe5 {[%emt 0:00:17]} (16. f4 $16 {Black must now prevent fxe5.} Re8 17. fxe5 dxe5 18. d5) 16... dxe5 $11 {[%emt 0:00:07]} 17. Rfd1 {[%emt 0:00:01]} (17. Rfc1 $5 {[%cal Rd3c4]} b5 18. a4 $11) 17... Qe7 {[%emt 0:00:16]} 18. Rac1 {[%emt 0:00:09]} b5 {[%emt 0:00:02]} 19. Bxc4 {[%emt 0:01:12]} (19. Qe1 $11) 19... bxc4 $17 {[%emt 0:00:11]} 20. Na5 $2 {[%emt 0:00:14][%mdl 8192] [#]} (20. Nd2 $17 {is more resistant.}) 20... Qc5+ $19 {[%emt 0:00:05]} 21. Qf2 {[%emt 0:00:13]} Qxa5 {[%emt 0:00:02]} 22. Rd6 {[%emt 0:00:14]} Ne8 {[%emt 0:00:19]} 23. Rd7 {[%emt 0:00:18]} f6 {[%emt 0:00:17]} 24. Bd2 {[%emt 0:00:16]} Qxa2 {[%emt 0:00:24]} 25. Rxa7 {[%emt 0:00:27]} c3 {[%emt 0:00:04]} 26. Rxc3 {[%emt 0:01:03]} (26. Bxc3 {was the only defense.} Qe6 27. Bd2) 26... Rxc3 {[%emt 0:00:12]} 27. Bxc3 {[%emt 0:00:02]} Qc4 {[%emt 0:00:08]} 28. Bd2 {[%emt 0:00:53]} Nd6 {[%emt 0:00:58] Threatens to win with ...f5.} 29. h4 {[%emt 0:00:03]} Qe2 $2 {[%emt 0:00:00]} (29... f5 $19 {and Black stays clearly on top.} 30. Be3 Nc8) 30. Qg3 $2 {[%emt 0:00:18]} Nf7 $2 {[%emt 0:00:00]} ({Black should try} 30... Bb7 $19 31. Qf2 Qb5) 31. Bb4 {[%emt 0:00:07][%mdl 8192]} (31. Bh6 $1 $15 g6 32. Bxf8 Kxf8 33. Kh2) 31... Rc8 {[%emt 0:00:00] [#] And now ...Qe3+ would win.} ({Stronger than} 31... Qe3+ 32. Qf2 Qxf2+ 33. Kxf2 $17) 32. Qg4 $2 {[%emt 0:00:19]} (32. Kh2) 32... Qd1+ $2 {[%emt 0:00:02]} ({Better is} 32... Qe3+ $19 33. Kh2 Qxa7) 33. Kh2 $11 {[%emt 0:00:01] Qe6 is the strong threat. The board is on fire.} Qd8 {[%emt 0:00:13][%cal Of6f5] aiming for ...f5!} 34. Rxa6 {[%emt 0:00:00][%mdl 32768] Weighted Error Value: White=0.96/Black=0.74. Loss on time!?} 1-0